bitfinex/quotes_SOLUSD_20250708
["timestamp","ask_amount","ask_price","bid_price","bid_amount"]
[1751936458963,8.03469052,149.17,149.14,8.046]
[1751936463886,4.53469052,149.16,149.14,8.046]
[1751936465965,3.5,149.17,149.14,8.046]
[1751936466285,4.53469052,149.16,149.14,8.046]
[1751936467189,8.03469052,149.17,149.14,8.046]
[1751936467372,4.53469052,149.16,149.14,8.046]
[1751936469884,4.53469052,149.15,149.11,7.7294]
[1751936470086,4.53469052,149.16,149.11,18.9705146]
[1751936470271,26.0,149.16,149.12,4.53469052]
[1751936470474,8.01469052,149.18,149.13,4.53469052]
[1751936471183,30.53469052,149.17,149.13,4.53469052]
[1751936471792,30.53469052,149.17,149.11,14.43582408]
[1751936472018,30.53469052,149.17,149.13,4.53469052]
[1751936472670,30.53469052,149.17,149.12,4.53469052]
[1751936473665,26.0,149.17,149.12,4.53469052]
[1751936473863,30.53469052,149.17,149.12,11.240544]
[1751936475576,30.53469052,149.17,149.13,0.06]
[1751936476271,7.46831012,149.16,149.13,0.06]
[1751936476893,161.55521597,149.2,149.15,4.53469052]
[1751936477209,7.46921672,149.19,149.17,4.53469052]
[1751936477375,7.46921672,149.19,149.18,4.53469052]
[1751936477698,0.03,149.21,149.18,4.53469052]
[1751936477869,0.03,149.21,149.2,4.53469052]
[1751936479264,0.03,149.21,149.2,11.23710338]
[1751936480296,0.03,149.21,149.19,6.70269216]
[1751936480595,0.03,149.21,149.2,4.53469052]
[1751936482895,0.03,149.21,149.19,4.53469052]
[1751936483093,0.03,149.21,149.17,7.667]
[1751936483094,0.03,149.21,149.18,4.53469052]
[1751936483397,7.51212869,149.21,149.18,4.53469052]
[1751936484190,7.51212869,149.21,149.19,4.53469052]
[1751936484788,0.03,149.21,149.2,4.53469052]
[1751936485991,0.03,149.21,149.19,4.53469052]
[1751936487899,0.03,149.21,149.17,14.37065232]
[1751936488088,0.03,149.21,149.19,4.53469052]
[1751936488993,0.03,149.21,149.18,4.53469052]
[1751936489877,0.03,149.21,149.17,7.667]
[1751936490093,0.03,149.21,149.18,4.53469052]
[1751936491310,0.03,149.21,149.19,4.53469052]
[1751936492691,0.03,149.21,149.2,4.53469052]
[1751936494692,0.03,149.21,149.19,4.53469052]
[1751936495313,0.03,149.21,149.18,4.53469052]
[1751936497212,0.03,149.21,149.17,7.667]
[1751936497413,0.03,149.21,149.18,4.53469052]
[1751936498589,0.03,149.21,149.18,4.59469052]
[1751936499109,0.03,149.21,149.19,4.53469052]
[1751936499308,0.03,149.21,149.18,4.59469052]
[1751936499507,0.03,149.21,149.18,0.06]
[1751936502810,7.510285,149.21,149.18,0.06]
[1751936504103,0.03,149.21,149.18,4.59469052]
[1751936504304,0.03,149.21,149.18,0.06]
[1751936504503,4.56469052,149.21,149.18,0.06]
[1751936504704,12.04710565,149.21,149.18,0.06]
[1751936504926,4.53469052,149.19,149.18,0.06]
[1751936505422,11.23755264,149.19,149.18,0.06]
[1751936505596,18.71996777,149.19,149.18,0.06]
[1751936505925,37.36961663,149.19,149.18,0.06]
[1751936506509,37.5117782,149.19,149.18,0.06]
[1751936507121,46.83230365,149.19,149.18,0.06]
[1751936507317,37.5117782,149.19,149.18,0.06]
[1751936507521,46.83230365,149.19,149.18,0.06]
[1751936507821,46.85730984,149.19,149.18,0.06]
[1751936508500,37.50845052,149.19,149.18,0.06]
[1751936509016,46.85730984,149.19,149.18,0.06]
[1751936510224,50.33730984,149.19,149.18,0.06]
[1751936510722,54.87200036,149.19,149.18,0.06]
[1751936511111,26.0,149.15,149.13,0.06]
[1751936511326,4.53469052,149.14,149.13,0.06]
[1751936517127,4.53469052,149.13,149.09,11.34859052]
[1751936519103,29.48,149.15,149.1,4.53469052]
[1751936519309,4.53469052,149.14,149.1,4.53469052]
[1751936520341,4.53469052,149.14,149.09,13.52122639]
[1751936520342,4.53469052,149.13,149.09,6.8139]
[1751936520550,4.53469052,149.13,149.09,6.8739]
[1751936521230,36.18495683,149.15,149.09,0.06]
[1751936521231,4.53469052,149.12,149.09,0.06]
[1751936526341,4.53469052,149.11,149.09,0.06]
[1751936526943,4.53469052,149.12,149.09,0.06]
[1751936531853,30.53469052,149.1,149.09,0.06]
[1751936532018,38.54938104,149.1,149.09,0.06]
[1751936532223,34.01469052,149.1,149.09,0.06]
[1751936533423,40.72159863,149.1,149.09,0.06]
[1751936533839,34.01469052,149.1,149.09,0.06]
[1751936534942,40.72159863,149.1,149.09,0.06]
[1751936537636,64.04809958,149.1,149.09,0.06]
[1751936537823,59.51340906,149.1,149.09,0.06]
[1751936538029,66.96235368,149.1,149.09,0.06]
[1751936538624,43.63585273,149.1,149.09,0.06]
[1751936538824,40.72159863,149.1,149.09,0.06]
[1751936540254,36.93165045,149.1,149.09,0.06]
[1751936540460,41.46634097,149.1,149.09,0.06]
[1751936540626,34.01469052,149.1,149.09,0.06]
[1751936542357,34.04469052,149.1,149.09,0.06]
[1751936542519,26.03,149.1,149.09,0.06]
[1751936542725,29.51,149.1,149.09,0.06]
[1751936544542,36.97534993,149.1,149.09,0.06]
[1751936544859,29.51,149.1,149.09,0.06]
[1751936545041,30.56469052,149.1,149.09,0.06]
[1751936545240,34.04469052,149.1,149.09,0.06]
[1751936545433,40.75159863,149.1,149.09,0.06]
[1751936545645,37.27159863,149.1,149.09,0.06]
[1751936545872,40.75159863,149.1,149.09,0.06]
[1751936546872,67.01439875,149.1,149.09,0.06]
[1751936547038,71.54908927,149.1,149.09,0.06]
[1751936548457,71.54908927,149.1,149.05,1.4210863]
[1751936548458,6.70780788,149.08,149.05,1.4210863]
[1751936548632,4.53469052,149.06,149.05,1.4210863]
[1751936549449,11.24339842,149.06,149.05,1.4210863]
[1751936552568,18.72738902,149.06,149.05,1.4210863]
[1751936554550,11.24339842,149.06,149.05,1.4210863]
[1751936555257,18.72557763,149.06,149.05,1.4210863]
[1751936557154,3.48,149.07,149.05,1.4210863]
[1751936557155,14.72311354,149.07,149.05,1.4210863]
[1751936558172,36.18790143,149.08,149.05,5.95577682]
[1751936558667,40.72259195,149.08,149.05,1.4210863]
[1751936559351,36.18790143,149.08,149.05,1.4210863]
[1751936559555,37.24259195,149.08,149.05,1.4210863]
[1751936559753,40.72259195,149.08,149.05,1.4210863]
[1751936561357,4.53469052,149.06,149.05,1.4210863]
[1751936562370,11.24339842,149.06,149.05,1.4210863]
[1751936562673,18.72691569,149.06,149.05,1.4210863]
[1751936563671,11.24339842,149.06,149.05,1.4210863]
[1751936564170,11.24339842,149.06,149.05,1.4810863]
[1751936565272,18.72893116,149.06,149.05,1.4810863]
[1751936568552,6.70844722,149.07,149.05,1.4810863]
[1751936568964,188.42262906,149.08,149.05,1.4810863]
[1751936570759,12.02573614,149.07,149.05,1.4810863]
[1751936571766,18.73424929,149.07,149.05,1.4810863]
[1751936571962,11.24320367,149.07,149.05,1.4810863]
[1751936574360,6.70851315,149.07,149.05,1.4810863]
[1751936574560,14.20681493,149.07,149.05,1.4810863]
[1751936575570,7.49830178,149.06,149.05,1.4810863]
[1751936580672,173.7,149.08,149.05,1.4810863]
[1751936580856,7.50420098,149.07,149.05,1.4810863]
[1751936581859,8.04469052,149.09,149.06,12.68669052]
[1751936581860,0.03,149.09,149.06,12.68669052]
[1751936582088,0.03,149.09,149.08,4.53469052]
[1751936584757,0.03,149.09,149.07,4.53469052]
[1751936587090,0.03,149.09,149.06,8.152]
[1751936587258,12.06394696,149.09,149.05,1.4810863]
[1751936587454,7.49925644,149.08,149.05,1.4810863]
[1751936588683,7.49925644,149.08,149.05,6.01577682]
[1751936588877,7.49925644,149.08,149.05,1.4810863]
[1751936589189,6.7374329,149.09,149.05,6.01577682]
[1751936589374,7.49785066,149.08,149.05,6.01577682]
[1751936590583,4.56469052,149.09,149.05,6.01577682]
[1751936590788,12.06277446,149.09,149.05,6.01577682]
[1751936591595,7.49808394,149.08,149.05,6.01577682]
[1751936591771,7.49808394,149.08,149.06,4.53469052]
[1751936592376,12.03277446,149.07,149.05,1.4810863]
[1751936592697,4.53469052,149.07,149.05,1.4810863]
[1751936592872,12.04181263,149.07,149.05,1.4810863]
[1751936594088,7.50712211,149.07,149.05,1.4810863]
[1751936594585,4.53469052,149.07,149.05,1.4810863]
[1751936594799,12.03792959,149.07,149.05,1.4810863]
[1751936596591,18.74620413,149.07,149.05,1.4810863]
[1751936596896,4.53469052,149.07,149.05,1.4810863]
[1751936597103,12.03500379,149.07,149.05,1.4810863]
[1751936597601,4.53469052,149.06,149.05,1.4810863]
[1751936597895,12.03500379,149.07,149.05,1.4810863]
[1751936599699,4.53469052,149.06,149.05,1.4810863]
[1751936599901,12.03425072,149.06,149.05,1.4810863]
[1751936601196,18.74295862,149.06,149.05,1.4810863]
[1751936601503,14.2082681,149.06,149.05,1.4810863]
[1751936601675,18.74295862,149.06,149.05,1.4810863]
[1751936602003,12.03425072,149.06,149.05,1.4810863]
[1751936604299,18.74295862,149.06,149.05,1.4810863]
[1751936615533,37.53476905,149.06,149.05,1.4810863]
[1751936615714,37.53476905,149.06,149.05,1e-08]
[1751936615917,46.91382791,149.06,149.05,1e-08]
[1751936616933,44.64964886,149.02,148.95,6.19799052]
[1751936617112,4.53469052,149.0,148.95,6.19799052]
[1751936618113,10.17111662,149.01,148.95,1.6633]
[1751936618114,3.46,149.01,148.95,1.6633]
[1751936618313,4.53469052,149.0,148.95,6.19799052]
[1751936618748,4.53469052,148.99,148.95,1.6633]
[1751936618946,4.53469052,148.99,148.95,6.19799052]
[1751936619314,4.53469052,148.98,148.95,1.6633]
[1751936619831,4.53469052,148.99,148.95,1.6633]
[1751936620043,4.53469052,148.98,148.95,1.6633]
[1751936622244,4.53469052,148.99,148.95,1.6633]
[1751936622619,152.23469052,149.01,148.97,4.53469052]
[1751936623614,26.0,149.02,148.98,4.53469052]
[1751936624035,26.0,149.02,148.95,25.16092895]
[1751936624245,26.0,149.02,148.98,4.53469052]
[1751936625638,26.0,149.02,148.95,25.16092895]
[1751936625828,26.0,149.02,148.98,4.53469052]
[1751936626033,26.0,149.02,148.98,11.24670638]
[1751936626230,3.46,149.04,148.99,4.53469052]
[1751936626231,4.53469052,149.04,148.99,4.53469052]
[1751936626533,155.0,149.06,149.0,4.53469052]
[1751936626534,12.01370847,149.05,149.0,4.53469052]
[1751936626737,41.59134466,149.1,149.03,4.53469052]
[1751936626738,0.03,149.09,149.03,4.53469052]
[1751936627037,7.51097102,149.09,149.04,4.53469052]
[1751936627238,12.04566154,149.09,149.04,4.53469052]
[1751936627642,0.03,149.09,149.06,4.53469052]
[1751936627825,0.03,149.09,149.08,4.53469052]
[1751936631638,0.03,149.09,149.07,4.53469052]
[1751936633332,0.03,149.09,149.06,6.05489052]
[1751936633539,0.03,149.09,149.08,4.53469052]
[1751936637634,0.03,149.09,149.07,4.53469052]
[1751936638024,0.03,149.09,149.08,4.53469052]
[1751936638434,0.03,149.09,149.06,1.5202]
[1751936638740,0.03,149.09,149.08,4.53469052]
[1751936640352,0.03,149.09,149.07,4.53469052]
[1751936640563,4.56469052,149.09,149.05,6.4744]
[1751936640740,4.56469052,149.09,149.05,11.00909052]
[1751936640927,4.53469052,149.07,149.05,0.06]
[1751936641133,4.53469052,149.06,149.05,0.06]
[1751936642251,30.53469052,149.06,149.05,0.06]
[1751936642453,37.24339842,149.06,149.05,0.06]
[1751936642635,30.53469052,149.06,149.05,0.06]
[1751936643149,37.24339842,149.06,149.05,0.06]
[1751936644956,30.53469052,149.06,149.05,0.06]
[1751936645930,37.24339842,149.06,149.05,0.06]
[1751936646341,30.53469052,149.06,149.05,0.06]
[1751936648762,37.24339842,149.06,149.05,0.06]
[1751936649234,63.50853305,149.06,149.05,0.06]
[1751936649433,66.96853305,149.06,149.05,0.06]
[1751936661166,36.9333242,149.06,149.05,0.06]
[1751936661349,33.99469052,149.06,149.05,0.06]
[1751936661753,30.53469052,149.06,149.05,0.06]
[1751936661954,33.99469052,149.06,149.05,0.06]
[1751936663762,30.53469052,149.06,149.05,0.06]
[1751936663966,33.99469052,149.06,149.05,0.06]
[1751936671577,30.53469052,149.06,149.05,0.06]
[1751936671782,33.99469052,149.06,149.05,0.06]
[1751936672378,26.0,149.06,149.05,0.06]
[1751936675076,4.56469052,149.07,149.05,0.06]
[1751936675077,0.03,149.07,149.05,0.06]
[1751936676680,0.03,149.07,149.05,4.59469052]
[1751936676880,0.03,149.07,149.06,4.53469052]
[1751936679367,0.03,149.07,149.05,4.59469052]
[1751936683771,0.03,149.07,149.06,4.53469052]
[1751936684387,0.03,149.07,149.06,4.67685209]
[1751936684565,0.03,149.07,149.06,30.94600095]
[1751936684910,7.26,149.17,149.09,18.64964886]
[1751936685202,157.07905886,149.18,149.14,4.53469052]
[1751936685203,7.5096562,149.16,149.14,4.53469052]
[1751936685379,158.93810273,149.18,149.14,4.53469052]
[1751936685578,7.50487768,149.17,149.14,4.53469052]
[1751936686494,12.0395682,149.17,149.08,26.0]
[1751936686693,4.53469052,149.14,149.09,4.53469052]
[1751936686895,4.53469052,149.13,149.09,4.53469052]
[1751936687282,4.53469052,149.13,149.06,40.32804739]
[1751936687485,4.53469052,149.12,149.07,4.53469052]
[1751936687701,4.53469052,149.11,149.07,4.53469052]
[1751936687891,4.53469052,149.1,149.06,12.15419052]
[1751936688082,4.53469052,149.1,149.06,4.53469052]
[1751936689281,4.53469052,149.1,149.05,4.59469052]
[1751936692000,4.53469052,149.09,149.05,4.59469052]
[1751936697615,4.53469052,149.09,149.05,0.06]
[1751936697804,4.53469052,149.09,149.05,4.59469052]
[1751936698010,4.53469052,149.1,149.05,4.59469052]
[1751936698214,4.53469052,149.1,149.06,4.53469052]
[1751936700014,4.53469052,149.1,149.05,11.30377474]
[1751936700221,4.53469052,149.1,149.05,4.59469052]
[1751936700424,4.53469052,149.09,149.05,4.59469052]
[1751936700603,4.53469052,149.09,149.05,0.06]
[1751936701124,147.7,149.12,149.08,4.53469052]
[1751936701314,147.7,149.12,149.1,4.53469052]
[1751936701625,38.81580107,149.15,149.1,4.53469052]
[1751936701923,7.50391288,149.14,149.1,4.53469052]
[1751936702120,7.50391288,149.14,149.11,4.53469052]
[1751936702322,0.03,149.17,149.13,4.53469052]
[1751936702506,0.03,149.17,149.16,4.53469052]
[1751936702700,0.03,149.17,149.15,4.53469052]
[1751936702900,0.03,149.17,149.1,4.53469052]
[1751936702901,0.03,149.17,149.14,4.53469052]
[1751936703802,0.03,149.17,149.1,4.53469052]
[1751936704003,4.56469052,149.17,149.12,4.53469052]
[1751936704207,12.06841675,149.17,149.12,4.53469052]
[1751936707032,4.53469052,149.16,149.1,6.70690811]
[1751936707209,4.53469052,149.16,149.11,4.53469052]
[1751936707614,4.53469052,149.16,149.1,6.70690811]
[1751936707816,4.53469052,149.16,149.11,4.53469052]
[1751936708138,0.03,149.17,149.11,6.70630137]
[1751936708308,4.56469052,149.17,149.12,4.53469052]
[1751936708502,12.06614429,149.17,149.12,4.53469052]
[1751936708712,4.56469052,149.17,149.12,4.53469052]
[1751936710004,0.03,149.17,149.12,4.53469052]
[1751936710211,4.56469052,149.17,149.12,4.53469052]
[1751936713231,4.53469052,149.16,149.11,4.53469052]
[1751936715009,4.53469052,149.16,149.12,4.53469052]
[1751936718537,12.06538327,149.17,149.12,4.53469052]
[1751936718745,4.56469052,149.17,149.12,4.53469052]
[1751936719767,4.53469052,149.16,149.1,6.70675581]
[1751936719911,6.73389845,149.17,149.1,6.70675581]
[1751936719912,4.53469052,149.15,149.11,4.53469052]
[1751936720108,4.53469052,149.13,149.08,4.53469052]
[1751936720321,4.53469052,149.13,149.07,4.53469052]
[1751936720322,4.53469052,149.11,149.07,4.53469052]
[1751936720529,4.53469052,149.1,149.05,12.93405086]
[1751936720743,26.0,149.12,149.06,4.53469052]
[1751936720953,4.53469052,149.11,149.06,4.53469052]
[1751936721412,4.53469052,149.11,149.07,4.53469052]
[1751936723043,30.53469052,149.12,149.07,11.24283752]
[1751936725748,30.53469052,149.12,149.07,4.53469052]
[1751936726056,4.53469052,149.1,149.06,4.53469052]
[1751936726431,4.53469052,149.11,149.06,4.53469052]
[1751936727153,4.53469052,149.1,149.06,4.53469052]
[1751936728857,4.53469052,149.11,149.06,4.53469052]
[1751936730450,30.53469052,149.11,149.07,4.53469052]
[1751936730852,30.53469052,149.11,149.06,11.24323903]
[1751936731561,26.0,149.12,149.06,11.24323903]
[1751936731759,4.53469052,149.11,149.06,11.24323903]
[1751936732245,30.53469052,149.11,149.06,11.24323903]
[1751936732952,4.53469052,149.11,149.06,11.24323903]
[1751936733153,4.53469052,149.11,149.07,4.53469052]
[1751936733334,4.53469052,149.11,149.06,4.53469052]
[1751936734665,4.53469052,149.11,149.05,6.76900974]
[1751936734960,4.53469052,149.11,149.06,4.53469052]
[1751936737856,4.53469052,149.11,149.05,0.06]
[1751936738037,4.53469052,149.08,149.05,0.06]
[1751936738740,4.53469052,149.09,149.05,0.06]
[1751936740967,4.53469052,149.09,149.05,4.59469052]
[1751936742542,26.0,149.11,149.06,4.53469052]
[1751936742757,30.53469052,149.11,149.07,4.53469052]
[1751936744566,30.53469052,149.11,149.06,11.2431861]
[1751936745880,30.53469052,149.11,149.05,0.06]
[1751936745881,30.53469052,149.11,149.05,6.76895548]
[1751936746371,30.53469052,149.11,149.06,4.53469052]
[1751936746672,4.53469052,149.1,149.06,4.53469052]
[1751936749068,4.53469052,149.09,149.05,4.59469052]
[1751936750757,4.53469052,149.09,149.05,0.06]
[1751936751370,4.53469052,149.08,149.05,0.06]
[1751936752769,4.53469052,149.07,149.05,0.06]
[1751936755692,178.7762,149.11,149.06,4.53469052]
[1751936755693,152.23469052,149.11,149.06,4.53469052]
[1751936755891,7.50569603,149.1,149.07,4.53469052]
[1751936756096,152.23469052,149.11,149.07,4.53469052]
[1751936756472,147.7,149.11,149.07,4.53469052]
[1751936758896,26.0,149.1,149.07,4.53469052]
[1751936760872,0.03,149.12,149.08,4.53469052]
[1751936761075,7.54267932,149.12,149.09,4.53469052]
[1751936762081,0.03,149.12,149.09,4.53469052]
[1751936762297,4.56469052,149.12,149.06,0.14216157]
[1751936762480,7.5479705,149.12,149.08,4.53469052]
[1751936762684,7.5479705,149.12,149.09,4.53469052]
[1751936763005,7.5479705,149.12,149.1,4.53469052]
[1751936763214,7.52102384,149.11,149.1,4.53469052]
[1751936763383,0.03,149.12,149.1,4.53469052]
[1751936763583,7.52045293,149.11,149.1,4.53469052]
[1751936763793,0.03,149.12,149.1,12.63569052]
[1751936764005,0.03,149.12,149.11,4.53469052]
[1751936764309,7.52156928,149.15,149.11,4.67685209]
[1751936764521,0.03,149.16,149.11,18.79181043]
[1751936764825,7.52411186,149.15,149.13,4.53469052]
[1751936765392,7.52411186,149.15,149.14,4.53469052]
[1751936766502,0.03,149.16,149.14,4.53469052]
[1751936768304,0.03,149.16,149.15,4.53469052]
[1751936770301,0.03,149.16,149.11,25.49826874]
[1751936770500,0.03,149.16,149.14,4.53469052]
[1751936770702,0.03,149.16,149.11,6.70645831]
[1751936770886,4.53469052,149.14,149.1,12.63569052]
[1751936771089,4.53469052,149.14,149.1,1.6322]
[1751936771290,4.53469052,149.13,149.08,4.53469052]
[1751936771495,4.53469052,149.13,149.08,11.2423537]
[1751936772286,4.53469052,149.13,149.08,4.53469052]
[1751936772485,4.53469052,149.12,149.08,4.53469052]
[1751936773213,4.53469052,149.13,149.09,4.53469052]
[1751936774614,10.17438485,149.16,149.09,4.53469052]
[1751936774796,4.53469052,149.14,149.09,4.53469052]
[1751936776205,4.53469052,149.14,149.1,4.53469052]
[1751936776513,12.03902437,149.14,149.1,4.53469052]
[1751936776812,4.53469052,149.15,149.11,4.53469052]
[1751936777413,0.03,149.16,149.12,4.53469052]
[1751936777596,0.03,149.16,149.12,30.53469052]
[1751936778104,0.03,149.16,149.13,4.53469052]
[1751936778785,0.03,149.16,149.12,11.24053428]
[1751936780616,0.03,149.16,149.13,4.53469052]
[1751936781224,0.03,149.16,149.1,6.70690811]
[1751936781225,0.03,149.16,149.14,4.53469052]
[1751936782909,0.03,149.16,149.1,29.60386891]
[1751936782910,0.03,149.16,149.13,4.53469052]
[1751936785417,0.03,149.16,149.15,4.53469052]
[1751936786121,0.03,149.16,149.12,12.71470734]
[1751936786321,0.03,149.16,149.12,4.53469052]
[1751936786495,0.03,149.16,149.14,4.53469052]
[1751936787197,0.03,149.16,149.1,29.60366834]
[1751936787398,0.03,149.16,149.13,4.53469052]
[1751936787616,4.53469052,149.15,149.1,12.83639806]
[1751936788398,4.53469052,149.15,149.1,4.53469052]
[1751936788596,4.53469052,149.11,149.07,18.64964886]
[1751936788796,4.53469052,149.08,149.05,0.06]
[1751936789006,4.53469052,149.07,149.05,0.06]
[1751936789515,30.53469052,149.1,149.05,0.06]
[1751936789516,4.53469052,149.06,149.05,0.06]
[1751936790031,30.53469052,149.06,149.05,0.06]
[1751936790242,37.24339842,149.06,149.05,0.06]
[1751936790534,63.37144271,149.06,149.05,0.06]
[1751936791005,63.51360428,149.06,149.05,0.06]
[1751936791735,26.0,149.02,148.95,6.506]
[1751936792031,4.53469052,148.99,148.94,4.53469052]
[1751936794229,4.53469052,148.98,148.94,4.53469052]
[1751936794434,4.53469052,148.98,148.93,1.5424]
[1751936794604,4.53469052,148.98,148.94,4.53469052]
[1751936795710,26.0,149.02,148.96,4.53469052]
[1751936795916,4.53469052,149.0,148.93,18.79181043]
[1751936796123,4.53469052,149.01,148.96,4.53469052]
[1751936797615,4.53469052,149.0,148.96,4.53469052]
[1751936797814,4.53469052,149.01,148.96,11.24786635]
[1751936798226,26.0,149.02,148.97,4.53469052]
[1751936798443,4.53469052,149.01,148.97,4.53469052]
[1751936798813,4.53469052,149.01,148.96,4.53469052]
[1751936800024,4.53469052,149.0,148.93,6.71456388]
[1751936800336,4.53469052,148.99,148.95,4.53469052]
[1751936800930,4.53469052,149.0,148.93,6.71456388]
[1751936801127,4.53469052,149.01,148.97,4.53469052]
[1751936801339,147.7,149.07,149.0,4.53469052]
[1751936801512,11.24201228,149.1,149.04,4.53469052]
[1751936801513,11.71469052,149.08,149.04,4.53469052]
[1751936801712,11.71469052,149.08,149.03,4.53469052]
[1751936801937,11.71469052,149.08,149.04,4.53469052]
[1751936802313,7.18,149.08,149.02,6.71021618]
[1751936802533,7.18,149.08,149.04,4.53469052]
[1751936802745,7.18,149.08,149.02,6.71021618]
[1751936802909,7.18,149.08,149.04,4.53469052]
[1751936803628,11.71469052,149.08,149.03,4.53469052]
[1751936804617,11.71469052,149.08,149.02,6.71048503]
[1751936804816,11.71469052,149.08,149.03,4.53469052]
[1751936805032,7.18,149.08,149.03,4.53469052]
[1751936805231,11.71469052,149.08,149.04,4.53469052]
[1751936805423,11.71469052,149.08,149.03,4.53469052]
[1751936807737,7.18,149.08,149.04,4.53469052]
[1751936808037,26.0,149.08,149.05,4.53469052]
[1751936808239,26.0,149.08,149.04,4.53469052]
[1751936810140,26.0,149.08,149.03,6.70994973]
[1751936810443,26.0,149.07,149.04,4.53469052]
[1751936811229,26.0,149.08,149.04,4.53469052]
[1751936813226,26.0,149.08,149.02,8.22532478]
[1751936813428,30.53469052,149.08,149.04,4.53469052]
[1751936814442,26.0,149.08,149.04,4.53469052]
[1751936814629,26.0,149.08,149.05,4.53469052]
[1751936816244,0.03,149.09,149.05,4.53469052]
[1751936817055,0.03,149.09,149.07,4.53469052]
[1751936817649,0.03,149.09,149.08,4.53469052]
[1751936817941,0.03,149.09,149.07,4.53469052]
[1751936818851,0.03,149.09,149.08,4.53469052]
[1751936819638,0.03,149.09,149.07,4.53469052]
[1751936820149,0.03,149.09,149.08,4.53469052]
[1751936821563,0.03,149.09,149.07,4.53469052]
[1751936824536,0.03,149.09,149.06,10.71729052]
[1751936824737,0.03,149.09,149.06,6.1826]
[1751936824936,0.03,149.09,149.06,10.71729052]
[1751936825148,4.56469052,149.09,149.02,14.5561063]
[1751936825331,4.53469052,149.08,149.03,4.53469052]
[1751936825832,4.53469052,149.07,149.02,19.09079682]
[1751936826032,26.03,149.09,149.02,19.09079682]
[1751936826234,4.53469052,149.07,149.03,11.24471752]
[1751936826455,4.53469052,149.08,149.03,11.24471752]
[1751936827666,26.03,149.09,149.04,4.53469052]
[1751936827841,30.56469052,149.09,149.04,4.53469052]
[1751936828040,37.27207945,149.09,149.04,4.53469052]
[1751936828240,4.56469052,149.09,149.04,4.53469052]
[1751936829562,4.53469052,149.08,149.04,4.53469052]
[1751936830661,4.53469052,149.07,149.02,12.38049052]
[1751936831942,4.53469052,149.08,149.03,4.53469052]
[1751936832757,30.56469052,149.09,149.04,4.53469052]
[1751936833538,26.03,149.09,149.05,4.53469052]
[1751936833737,0.03,149.09,149.06,4.53469052]
[1751936833938,0.03,149.09,149.07,4.53469052]
[1751936834640,0.03,149.09,149.06,4.53469052]
[1751936837663,0.03,149.09,149.07,4.53469052]
[1751936838864,0.03,149.09,149.05,6.76913379]
[1751936839064,0.03,149.09,149.07,4.53469052]
[1751936841363,0.03,149.09,149.05,6.76913379]
[1751936841364,0.03,149.09,149.05,0.06]
[1751936841569,4.56469052,149.09,149.05,0.06]
[1751936841949,0.03,149.09,149.05,0.06]
[1751936842149,0.03,149.09,149.05,4.59469052]
[1751936842476,0.03,149.09,149.06,4.53469052]
[1751936845856,0.03,149.09,149.05,4.59469052]
[1751936846350,7.5429908,149.09,149.05,0.06]
[1751936846759,7.5429908,149.09,149.05,4.59469052]
[1751936846958,7.5429908,149.09,149.05,11.30384464]
[1751936848080,0.03,149.09,149.07,4.53469052]
[1751936848583,0.03,149.09,149.08,4.53469052]
[1751936852291,0.03,149.09,149.08,11.38465997]
[1751936852653,0.03,149.09,149.08,11.2424984]
[1751936856577,0.03,149.09,149.08,11.38465997]
[1751936856801,0.03,149.09,149.08,30.03430883]
[1751936857156,0.03,149.14,149.09,0.14216157]
[1751936857357,0.03,149.14,149.13,4.53469052]
[1751936857581,0.03,149.14,149.13,11.24024942]
[1751936858261,0.03,149.14,149.13,30.03205985]
[1751936858461,0.03,149.14,149.13,37.95495985]
[1751936859194,0.03,149.16,149.15,44.64964886]
[1751936859487,0.03,149.16,149.15,49.18433938]
[1751936859784,0.03,149.16,149.15,56.03116068]
[1751936859982,0.03,149.16,149.15,60.5658512]
[1751936861067,0.03,149.16,149.15,56.03116068]
[1751936861267,0.03,149.16,149.15,59.47116068]
[1751936871290,1e-08,149.16,149.15,64.0058512]
[1751936874499,0.03,149.21,149.16,0.14216157]
[1751936874688,0.03,149.21,149.2,4.53469052]
[1751936874882,0.03,149.21,149.2,8.11685209]
[1751936875386,0.03,149.21,149.2,7.70151002]
[1751936876008,0.03,149.21,149.2,11.82085847]